[Event "French-ch U12-U14 2024"]
[Site "Agen"]
[Date "2024.04.19"]
[Round "7.18"]
[White "Pon Le Brun, Gregoire"]
[Black "Auribault, Louis"]
[Result "1-0"]
[ECO "C70"]
[WhiteElo "1900"]
[BlackElo "2137"]
[Annotator "TA"]
[PlyCount "121"]
[EventDate "2024.04.14"]
[EventType "swiss"]
[EventCountry "FRA"]
[SourceTitle "playchess.com"]
[Source "ChessBase"]
[SourceQuality "1"]
[TimeControl "5400+30"]

{[%evp 19,121,17,40,24,36,10,14,-14,-29,-25,0,0,-8,-9,-4,0,0,7,0,0,18,31,25,11,56,55,66,-13,-7,-5,-8,-11,0,-17,0,0,28,14,36,9,25,0,32,0,41,41,80,87,84,85,91,0,57,0,95,53,116,0,58,0,8,0,22,0,18,14,16,18,93,67,287,285,851,274,260,256,242,145,1225,354,29984,29985,29984,29954,29950,12099,6410,6393,6287,1318,1287,1287,1259,1268,1172,1031,1590,1550,1361,1338,1618,1530,2158,2027]} 1. e4 {[%emt 0:00:05]} e5 {[%emt 0:00:03]} 2. Nf3 {[%emt 0:00:09]} Nc6 {[%emt 0:00:04]} 3. Bb5 {[%emt 0:00:09]} a6 {[%emt 0:00:14]} 4. Ba4 {[%emt 0:00:09]} Bc5 {[%emt 0:00:22]} 5. O-O {[%emt 0:16:33]} Nge7 {[%emt 0:00:35]} 6. Nxe5 {[%emt 0:03:06]} Nxe5 {[%emt 0:00:32]} 7. d4 {[%emt 0:00:11]} b5 {[%emt 0:00:57]} 8. Bb3 {[%emt 0:00:26]} Bxd4 {[%emt 0:02:07]} 9. Qxd4 {[%emt 0:00:14]} d6 {[%emt 0:00:15]} 10. c3 {[%emt 1:14:28]} (10. f4 $5 c5 $8 11. Qd2 $14 (11. Qc3 $16)) 10... c5 {[%emt 0:02:13]} 11. Qd1 {[%emt 0:00:00]} O-O {[%emt 0:03:50]} 12. f4 {[%emt 0:00:00]} Ng4 {[%emt 0:04:34]} 13. Qf3 {[%emt 0:00:00]} c4 {[%emt 0:11:57]} 14. Bc2 {[%emt 0:00:00]} Qb6+ {[%emt 0:03:01]} 15. Kh1 {[%emt 0:00:00]} f5 {[%emt 0:11:44]} 16. h3 {[%emt 0:00:00]} Nf6 {[%emt 0:00:24]} 17. Be3 {[%emt 0:00:00]} Qc7 {[%emt 0:00:45]} 18. Nd2 {[%emt 0:00:00]} Bb7 {[%emt 0:06:06]} 19. Bd4 {[%emt 0:00:00]} Rae8 {[%emt 0:06:44]} 20. Bxf6 {[%emt 0:00:00]} Rxf6 {[%emt 0:01:33]} 21. Rae1 {[%emt 0:00:00]} Qc8 {[%emt 0:02:08]} 22. Qf2 {[%emt 0:00:00]} Ref8 {[%emt 0:04:55]} 23. e5 {[%emt 0:00:00]} (23. exf5 $14 Nxf5 24. Ne4 Bxe4 25. Bxe4 (25. Rxe4 Qd7 $14)) 23... dxe5 $11 {[%emt 0:05:33]} 24. Rxe5 {[%emt 0:00:00]} Ng6 {[%emt 0:00:46]} 25. Re2 {[%emt 0:02:09]} Rd8 {[%emt 0:03:18]} 26. Qg3 {[%emt 0:02:34]} Qc7 {[%emt 0:02:52]} 27. Kh2 {[%emt 0:02:31]} Rf7 {[%emt 0:01:54]} 28. Rff2 {[%emt 0:01:08]} Rff8 {[%emt 0:06:42]} 29. Nf1 {[%emt 0:00:37]} Ne7 {[%emt 0:04:59]} 30. Nd2 {[%emt 0:00:25]} Rd6 {[%emt 0:04:22]} 31. Qe3 {[%emt 0:00:35]} Ng6 {[%emt 0:02:40]} 32. Nf3 {[%emt 0:00:29]} Qd8 {[%emt 0:01:14]} 33. Nd4 {[%emt 0:00:23]} Qd7 {[%emt 0:01:02]} 34. Re1 {[%emt 0:00:38]} Bd5 {[%emt 0:00:48]} 35. Ree2 {[%emt 0:00:30]} (35. Rfe2 $16) 35... Rdf6 {[%emt 0:00:54]} (35... Bb7 $1 $11) 36. Re1 {[%emt 0:00:21]} (36. Qd2 $14) 36... Qb7 {[%emt 0:00:07]} (36... Rd6 $1 $11) 37. Qg3 {[%emt 0:00:29]} Ne7 {[%emt 0:01:25]} (37... Qb8 $14) 38. Qe3 {[%emt 0:00:29]} ({Better is} 38. Re5 $16) 38... Nc6 {[%emt 0:00:07]} (38... Ng6 $1 $11) 39. Nxc6 {[%emt 0:00:40]} (39. Rd2 $14 Nxd4 40. Qxd4) 39... Qxc6 $11 {[%emt 0:00:07]} 40. Qa7 {[%emt 0:00:30]} Rg6 {[%emt 0:01:11]} 41. Ree2 {[%emt 0:00:14]} h5 {[%emt 0:02:13]} 42. Qe7 {[%emt 0:00:40]} Rgf6 {[%emt 0:00:30]} (42... Re6 {simplifies} 43. Rxe6 Qxe6 44. Re2 Qxe7 45. Rxe7 h4) 43. Re5 {[%emt 0:00:37]} h4 {[%emt 0:01:49]} (43... Re6 $11 {keeps the balance.} 44. Rxe6 Qxe6) 44. Rd2 {[%emt 0:00:20]} (44. Rfe2 {simplifies} Bf7 45. Bxf5 Qd6 46. Qxd6 Rxd6 47. Kg1) 44... Bf7 $2 {[%emt 0:00:25]} ({Black should play} 44... Be4 $1 $14) 45. Rd8 $18 {[%emt 0:00:40]} (45. Rxf5 Qe8 46. Qe5 Qxe5 47. fxe5 Rxf5 48. Bxf5 Re8 $16) 45... Bh5 $2 {[%emt 0:01:26]} (45... Rxd8 46. Qxd8+ Kh7 47. Rxf5 (47. Bxf5+ Bg6 $18) 47... Rxf5) 46. Rxf8+ $2 {[%emt 0:00:25]} (46. Rxf5 Rxd8 47. Qxd8+ Qe8 $18) (46. Rc5 Qb6 47. Rc7 Qxc7 48. Rxf8+ (48. Qxc7 Rxd8 49. Qxd8+ Kh7 $18) 48... Rxf8 49. Qxc7) 46... Rxf8 $18 {[%emt 0:02:03]} 47. Rxf5 {[%emt 0:00:34]} (47. Bxf5 Qf6 48. Qxf6 Rxf6 $16) 47... Re8 {[%emt 0:00:00]} 48. Qg5 {[%emt 0:00:25]} (48. Qxh4 $18 Bg6 49. Rc5 Qxc5 50. Bxg6) 48... g6 $2 {[%emt 0:00:00][%mdl 8192]} (48... Bf7 $16 49. Re5 (49. Qxh4 Re2 $14) 49... Rxe5 50. fxe5 Qc7) 49. Re5 $2 {[%emt 0:00:35]} (49. Rf6 Re6 50. Bxg6 Rxf6 51. Be4+ (51. Bxh5+ Kf8 $11) 51... Kf8 52. Bxc6 Rxc6 53. Qxh5) 49... Rf8 $2 {[%emt 0:00:13]} (49... Rxe5 $18 50. Qxe5 Qd7) 50. Be4 {[%emt 0:00:29]} Qc7 {[%emt 0:00:36]} 51. Bxg6 {[%emt 0:00:31]} Bxg6 {[%emt 0:00:18]} 52. Qxg6+ {[%emt 0:00:04]} Qg7 {[%emt 0:00:05]} 53. Qe6+ {[%emt 0:00:19]} Qf7 {[%emt 0:00:15]} 54. Rg5+ {[%emt 0:00:20]} (54. Qxa6 $2 {loses.} Qxf4+ 55. Kg1 Qxe5 $19) (54. Qg4+ $142 Qg7 55. Rg5 (55. Qxh4 Rf6 $18)) 54... Kh7 $18 {[%emt 0:00:02]} 55. Qe4+ {[%emt 0:00:10]} (55. Qxa6 $2 {perishes.} Qxf4+ 56. Kh1 Qc1+ (56... Qxg5 $2 57. Qa7+ Kg8 58. Kg1 $19) 57. Kh2 Qxg5 $19) 55... Kh6 {[%emt 0:00:21]} 56. Rg4 {[%emt 0:00:11]} Qf6 {[%emt 0:00:04]} 57. Qe1 {[%emt 0:01:43]} Rd8 {[%emt 0:00:48]} 58. Rxh4+ {[%emt 0:00:11]} Kg7 {[%emt 0:00:00]} 59. Rg4+ {[%emt 0:00:07]} Kf7 {[%emt 0:00:10]} 60. Qe4 {[%emt 0:00:27]} Re8 {[%emt 0:01:09]} 61. Qh7+ {[%emt 0:00:32]} 1-0

[Event "French-ch U12-U14 2024"]
[Site "Agen"]
[Date "2024.04.19"]
[Round "7.20"]
[White "Negre, Emilie"]
[Black "Charlier, Antoine"]
[Result "1-0"]
[ECO "C55"]
[WhiteElo "1922"]
[BlackElo "2053"]
[Annotator "TA"]
[PlyCount "104"]
[EventDate "2024.04.14"]
[EventType "swiss"]
[EventCountry "FRA"]
[SourceTitle "playchess.com"]
[Source "ChessBase"]
[SourceQuality "1"]
[TimeControl "5400+30"]

{[%evp 9,104,35,44,28,42,31,38,26,35,23,34,45,62,0,37,-7,0,-66,-50,-67,-43,-73,-95,-89,-43,-57,-23,-29,-11,-53,-30,-39,-37,-29,0,0,0,-1,0,-18,-14,-8,-20,-18,0,-18,0,-20,-22,-54,-47,-55,-62,-85,-104,-77,-64,-76,-66,-90,-79,-67,-70,-107,-96,-91,-43,-126,-93,-207,-40,-40,-12,-43,0,-39,-25,-51,35,-20,0,-65,-74,-110,-98,-215,-231,-354,-162,-386,271,14,1245,1244,1287,1188,29988]} 1. e4 {[%emt 0:00:05]} e5 {[%emt 0:00:12]} 2. Nf3 {[%emt 0:00:05]} Nc6 {[%emt 0:00:26]} 3. Bc4 {[%emt 0:00:11]} Nf6 {[%emt 0:00:58]} 4. d3 {[%emt 0:00:16]} h6 {[%emt 0:01:00]} 5. c3 {[%emt 0:00:13]} d6 {[%emt 0:00:33]} 6. a4 {[%emt 0:00:12]} g6 {[%emt 0:00:41]} 7. Nbd2 {[%emt 0:03:48]} Bg7 {[%emt 0:00:30]} 8. O-O {[%emt 0:03:58] White is slightly better.} O-O {[%emt 0:01:03]} 9. Re1 {[%emt 0:03:48]} Kh7 {[%emt 0:03:55]} 10. Nf1 {[%emt 0:07:44]} Nh5 {[%emt 0:04:22]} 11. h4 {[%emt 0:25:36] White is more active.} (11. h3 $14) 11... Ne7 {[%emt 0:14:55]} 12. Bb3 {[%emt 0:15:08]} f5 {[%emt 0:08:44]} 13. exf5 {[%emt 0:12:24]} (13. a5 $11) 13... Nxf5 $15 {[%emt 0:01:51]} (13... gxf5 14. Nxe5 dxe5 15. Qxh5 $16) 14. g3 {[%emt 0:01:09]} Bd7 {[%emt 0:08:12]} 15. Bd5 {[%emt 0:04:12]} c6 {[%emt 0:22:00]} 16. Be4 {[%emt 0:01:32]} Nf6 {[%emt 0:07:49]} (16... Qf6 $17 17. N3h2 d5) 17. N3h2 {[%emt 0:02:40]} Kh8 {[%emt 0:05:28]} 18. Bg2 {[%emt 0:02:34]} Qc7 {[%emt 0:02:18]} 19. Ne3 {[%emt 0:01:27]} Nxe3 {[%emt 0:01:53]} 20. Bxe3 {[%emt 0:00:58]} Nd5 {[%emt 0:00:43]} 21. Bd2 {[%emt 0:01:22]} Qb6 {[%emt 0:01:14]} 22. Qe2 {[%emt 0:01:45]} Rf7 {[%emt 0:01:03]} 23. a5 {[%emt 0:03:02]} Qc7 {[%emt 0:03:08]} 24. Ng4 {[%emt 0:01:46]} h5 {[%emt 0:01:20]} 25. Nh2 {[%emt 0:00:56]} Raf8 {[%emt 0:00:13]} 26. Rf1 {[%emt 0:00:16]} a6 {[%emt 0:02:20]} 27. b4 {[%emt 0:02:55]} Bf5 {[%emt 0:01:58]} 28. Rac1 {[%emt 0:00:53]} Qd7 {[%emt 0:01:17]} 29. c4 {[%emt 0:01:06]} Nc7 {[%emt 0:00:14]} 30. Bc3 {[%emt 0:00:33]} Bh3 {[%emt 0:03:20]} 31. Qd2 {[%emt 0:01:58]} Bxg2 {[%emt 0:00:20]} 32. Kxg2 {[%emt 0:00:06]} Kh7 {[%emt 0:00:11] Threatens to win with ...Bh6.} 33. Rce1 {[%emt 0:00:37]} Ne6 {[%emt 0:00:26]} 34. Qb2 {[%emt 0:00:51]} Kg8 {[%emt 0:02:11]} 35. Qe2 {[%emt 0:00:35]} Rf5 {[%emt 0:00:40]} 36. Qd2 {[%emt 0:00:44]} Kh7 {[%emt 0:00:19]} 37. Qe2 {[%emt 0:00:22][%cal Of2f4]} R8f7 {[%emt 0:00:36]} (37... Qf7 $17) 38. Qd2 {[%emt 0:00:22]} (38. f4 $15) 38... d5 {[%emt 0:00:20]} 39. Qb2 {[%emt 0:00:42] [#]} (39. Qe2 $17) 39... d4 $2 {[%emt 0:00:25]} (39... g5 $1 $19 40. Bxe5 gxh4) 40. Bd2 {[%emt 0:00:15]} Qe8 {[%emt 0:00:47]} 41. Bc1 {[%emt 0:00:34]} Qd7 {[%emt 0:00:29]} 42. Re2 {[%emt 0:00:41]} Qd6 {[%emt 0:00:30]} 43. Rfe1 {[%emt 0:00:36][%cal Of2f4]} Bf8 {[%emt 0:00:33]} (43... Qc7 $15) 44. Bd2 {[%emt 0:00:35]} ({White should play} 44. f4 $14) 44... Be7 {[%emt 0:00:20]} 45. Kg1 {[%emt 0:00:28]} (45. f4 $11 Bxh4 46. gxh4 Rxf4 47. Bc1 (47. Bxf4 Nxf4+ 48. Kg1 Nxd3 $11) (47. Rxe5 Rf2+ 48. Kg1 Rxh2 $17)) 45... g5 $1 {[%emt 0:00:17]} 46. hxg5 {[%emt 0:00:09]} Bxg5 {[%emt 0:00:31]} 47. Bxg5 {[%emt 0:00:28]} (47. Rf1 $17) 47... Nxg5 $19 {[%emt 0:00:02]} 48. Kg2 {[%emt 0:00:52]} (48. Kh1 $142) 48... Qf6 {[%emt 0:01:06]} (48... h4 $142 49. Rg1 hxg3 50. fxg3 Qh6) 49. Rh1 $2 {[%emt 0:00:36] [#]} (49. Qd2) 49... e4 $4 {[%emt 0:00:43][%mdl 8192]} 50. Ng4 $2 {[%emt 0:00:19]} (50. dxe4 $18 {[%cal Oh2g4] Ng4! would now be deadly.} d3 51. exf5 dxe2 52. Qxe2 Qxf5 53. Ng4 (53. Qxh5+ Kg7 $18)) 50... Qd6 $2 {[%emt 0:00:32][%mdl 8192]} (50... Qg6 $11 51. dxe4 (51. Qxd4 c5 $11) 51... Rf3) 51. Rxh5+ $18 {[%emt 0:00:21]} Kg7 {[%emt 0:00:08]} 52. dxe4 {[%emt 0:00:16]} Ne6 {[%emt 0:00:53] Weighted Error Value: White=0.44/Black=0.39.  Loses game:     	---       	Black=1      Missed win:     	White=1     	Black=2      Mistake:       	White=9     	Black=4      Inaccurate:     	White=9     	Black=5      OK:         	White=7     	Black=11     Best:        	White=2     	---        Strong:       	---       	Black=1} 1-0

[Event "French-ch U12-U14 2024"]
[Site "Agen"]
[Date "2024.04.20"]
[Round "8.1"]
[White "Alcantara, Levanah"]
[Black "Manouvel, Maelys"]
[Result "1/2-1/2"]
[ECO "D35"]
[WhiteElo "1756"]
[BlackElo "1541"]
[Annotator "NA RC COMBH"]
[PlyCount "74"]
[EventDate "2024.04.14"]
[EventType "swiss"]
[EventCountry "FRA"]
[SourceTitle "playchess.com"]
[Source "ChessBase"]
[SourceQuality "1"]
[TimeControl "5400+30"]

1. d4 {[%emt 0:00:17]} Nf6 {[%emt 0:00:53]} 2. Nf3 {[%emt 0:00:26]} d5 {[%emt 0:02:22]} 3. c4 {[%emt 0:00:30]} c6 {[%emt 0:02:55]} 4. Nc3 {[%emt 0:01:14]} e6 {[%emt 0:07:33]} 5. Bg5 {[%emt 0:00:59]} Be7 {[%emt 0:00:55]} 6. e3 {[%emt 0:01:09]} O-O {[%emt 0:03:12]} 7. Bd3 {[%emt 0:03:00]} Nbd7 {[%emt 0:04:46]} 8. cxd5 {[%emt 0:02:44]} exd5 {[%emt 0:04:15]} 9. O-O {[%emt 0:01:46]} Ne4 {[%emt 0:04:12]} 10. Bxe7 {[%emt 0:05:08]} Qxe7 {[%emt 0:01:47]} 11. Qc2 {[%emt 0:01:55]} Ndf6 {[%emt 0:02:41]} 12. Rab1 {[%emt 0:01:11]} Re8 {[%emt 0:05:28]} 13. b4 {[%emt 0:02:36]} Bd7 {[%emt 0:06:13]} 14. b5 {[%emt 0:01:34]} Nxc3 {[%emt 0:09:02]} 15. Qxc3 {[%emt 0:00:39]} cxb5 {[%emt 0:05:05]} 16. Bxb5 {[%emt 0:03:18]} Bxb5 {[%emt 0:01:33]} 17. Rxb5 {[%emt 0:00:23]} Rec8 {[%emt 0:02:39]} 18. Qb2 {[%emt 0:01:44]} Rc7 {[%emt 0:01:43]} 19. Rb1 {[%emt 0:02:50]} Rac8 {[%emt 0:02:17]} 20. h3 {[%emt 0:02:49]} b6 {[%emt 0:04:20]} 21. Rb3 {[%emt 0:04:35]} Ne4 {[%emt 0:03:44]} 22. Ne1 {[%emt 0:09:26]} Rc6 {[%emt 0:05:47]} 23. Nd3 {[%emt 0:04:49]} Rc2 {[%emt 0:01:54]} 24. Qa3 {[%emt 0:00:10]} Qf6 {[%emt 0:01:21]} 25. R3b2 {[%emt 0:04:21]} Nxf2 {[%emt 0:08:14]} 26. Rxc2 {[%emt 0:02:01]} Rxc2 {[%emt 0:00:21]} 27. Rc1 {[%emt 0:01:44]} Rxc1+ {[%emt 0:02:44]} 28. Qxc1 {[%emt 0:01:04]} Nxh3+ {[%emt 0:00:50]} 29. Kh1 {[%emt 0:01:18]} h6 {[%emt 0:01:14]} 30. gxh3 {[%emt 0:01:22]} Qf3+ {[%emt 0:00:04]} 31. Kg1 {[%emt 0:01:41]} Qg3+ {[%emt 0:01:47]} 32. Kh1 {[%emt 0:00:40]} Qxh3+ {[%emt 0:00:12]} 33. Kg1 {[%emt 0:00:11]} Qg4+ {[%emt 0:00:30]} 34. Kf1 {[%emt 0:01:02]} Qh3+ {[%emt 0:00:24]} 35. Kg1 {[%emt 0:01:12]} Qg3+ {[%emt 0:00:39]} 36. Kh1 {[%emt 0:00:42]} Qg4 {[%emt 0:04:54]} 37. Qd1 Qg3 1/2-1/2

[Event "French-ch U12-U14 2024"]
[Site "Agen"]
[Date "2024.04.20"]
[Round "8.2"]
[White "Duchatel, Cyrielle"]
[Black "Benhadid, Jeilynn"]
[Result "0-1"]
[ECO "B31"]
[WhiteElo "1646"]
[BlackElo "1844"]
[Annotator "NA RC COMBH"]
[PlyCount "105"]
[EventDate "2024.04.14"]
[EventType "swiss"]
[EventCountry "FRA"]
[SourceTitle "playchess.com"]
[Source "ChessBase"]
[SourceQuality "1"]
[TimeControl "5400+30"]

1. e4 {[%emt 0:00:09]} c5 {[%emt 0:00:20]} 2. Nf3 {[%emt 0:00:21]} Nc6 {[%emt 0:00:29]} 3. Bb5 {[%emt 0:00:34]} g6 {[%emt 0:00:58]} 4. O-O {[%emt 0:00:55]} Bg7 {[%emt 0:00:22]} 5. c3 {[%emt 0:00:53]} e5 {[%emt 0:01:55]} 6. Re1 {[%emt 0:01:30]} Nge7 {[%emt 0:00:44]} 7. d3 {[%emt 0:03:41]} O-O {[%emt 0:01:17]} 8. Be3 {[%emt 0:00:51]} Qb6 {[%emt 0:12:01]} 9. Bxc6 {[%emt 0:12:18]} Nxc6 {[%emt 0:00:45]} 10. Qc2 {[%emt 0:02:54]} d6 {[%emt 0:01:41]} 11. Nbd2 {[%emt 0:01:52]} Qd8 {[%emt 0:02:59]} 12. Nb3 {[%emt 0:01:15]} h6 {[%emt 0:01:19]} 13. d4 {[%emt 0:02:08]} cxd4 {[%emt 0:02:01]} 14. cxd4 {[%emt 0:00:08]} Bd7 {[%emt 0:06:24]} 15. Qd2 {[%emt 0:05:36]} Kh7 {[%emt 0:05:34]} 16. Rad1 {[%emt 0:01:30]} Bg4 {[%emt 0:02:03]} 17. Qe2 {[%emt 0:04:09]} Qf6 {[%emt 0:07:58]} 18. d5 {[%emt 0:08:53]} Ne7 {[%emt 0:02:21]} 19. Nbd2 {[%emt 0:03:27]} Ng8 {[%emt 0:04:51]} 20. h3 {[%emt 0:03:35]} Bd7 {[%emt 0:01:30]} 21. g4 {[%emt 0:03:58]} Qe7 {[%emt 0:02:47]} 22. Kh2 {[%emt 0:01:40]} f5 {[%emt 0:01:30]} 23. gxf5 {[%emt 0:03:10]} gxf5 {[%emt 0:00:31]} 24. exf5 {[%emt 0:01:56]} Bxf5 {[%emt 0:00:20]} 25. Rg1 {[%emt 0:00:21]} e4 {[%emt 0:14:43]} 26. Nd4 {[%emt 0:02:46]} Qe5+ {[%emt 0:01:33]} 27. Rg3 {[%emt 0:02:26]} Qxd5 {[%emt 0:03:55]} 28. Nxf5 {[%emt 0:01:45]} Qxf5 {[%emt 0:00:29]} 29. Nc4 {[%emt 0:01:25]} d5 {[%emt 0:02:55]} 30. Nd6 {[%emt 0:00:41]} Qe6 {[%emt 0:01:10]} 31. Qg4 {[%emt 0:03:22]} Qxg4 {[%emt 0:01:10]} 32. Rxg4 {[%emt 0:00:09]} Be5+ {[%emt 0:00:14]} 33. Kh1 {[%emt 0:00:17]} Bxd6 {[%emt 0:01:00]} 34. Rxd5 {[%emt 0:00:06]} Rad8 {[%emt 0:03:05]} 35. Bd4 {[%emt 0:01:27]} Nf6 {[%emt 0:03:01]} 36. Bxf6 {[%emt 0:00:10]} Rxf6 {[%emt 0:00:05]} 37. Rxe4 {[%emt 0:00:53]} Kg7 {[%emt 0:07:08]} 38. Kg2 {[%emt 0:00:40]} Kf7 {[%emt 0:00:14]} 39. f4 {[%emt 0:01:05]} Rc8 {[%emt 0:01:00]} 40. Red4 {[%emt 0:00:41]} Ke7 {[%emt 0:00:54]} 41. Kf3 {[%emt 0:00:37]} Rc2 {[%emt 0:00:22]} 42. Rd2 {[%emt 0:00:52]} Rxf4+ {[%emt 0:00:37]} 43. Ke3 {[%emt 0:00:14]} Rxd2 {[%emt 0:00:16]} 44. Rxd2 {[%emt 0:00:06]} Rh4 {[%emt 0:00:18]} 45. Kd3 {[%emt 0:00:43]} Rxh3+ {[%emt 0:00:00]} 46. Kc4 {[%emt 0:00:12]} Rh2 {[%emt 0:00:00]} 47. Rxh2 {[%emt 0:00:27]} Bxh2 {[%emt 0:00:00]} 48. b4 {[%emt 0:00:17]} Bc7 {[%emt 0:00:00]} 49. Kd5 {[%emt 0:00:22]} h5 {[%emt 0:00:00]} 50. Ke4 {[%emt 0:00:09]} h4 {[%emt 0:00:00]} 51. Kf3 {[%emt 0:00:07]} h3 {[%emt 0:00:14]} 52. a4 {[%emt 0:00:20]} Ke6 {[%emt 0:00:26]} 53. Ke4 {[%emt 0:26:57]} 0-1

[Event "French-ch U12-U14 2024"]
[Site "Agen"]
[Date "2024.04.20"]
[Round "8.4"]
[White "Anseeuw, Emma"]
[Black "Nikolaeva, Polina"]
[Result "1-0"]
[ECO "D20"]
[WhiteElo "1667"]
[BlackElo "1572"]
[Annotator "NA RC COMBH"]
[PlyCount "91"]
[EventDate "2024.04.14"]
[EventType "swiss"]
[EventCountry "FRA"]
[SourceTitle "playchess.com"]
[Source "ChessBase"]
[SourceQuality "1"]
[TimeControl "5400+30"]

1. d4 {[%emt 0:00:03]} d5 {[%emt 0:00:17]} 2. c4 {[%emt 0:00:14]} dxc4 {[%emt 0:00:30]} 3. e4 {[%emt 0:00:27]} Nc6 {[%emt 0:03:46]} 4. Be3 {[%emt 0:01:39]} e6 {[%emt 0:01:49]} 5. a3 {[%emt 0:02:00]} Nf6 {[%emt 0:01:28]} 6. Nc3 {[%emt 0:00:24]} Be7 {[%emt 0:01:18]} 7. Bxc4 {[%emt 0:00:47]} O-O {[%emt 0:01:34]} 8. h3 {[%emt 0:02:58]} e5 {[%emt 0:03:27]} 9. d5 {[%emt 0:01:09]} Nb8 {[%emt 0:02:04]} 10. Nf3 {[%emt 0:00:50]} Bd6 {[%emt 0:01:19]} 11. Qc2 {[%emt 0:04:41]} a6 {[%emt 0:01:21]} 12. Rd1 {[%emt 0:01:50]} Nbd7 {[%emt 0:04:26]} 13. b4 {[%emt 0:02:06]} b5 {[%emt 0:02:47]} 14. Bb3 {[%emt 0:04:13]} Bb7 {[%emt 0:04:42]} 15. O-O {[%emt 0:03:49]} Re8 {[%emt 0:02:11]} 16. Rfe1 {[%emt 0:08:02]} Rb8 {[%emt 0:04:52]} 17. Ne2 {[%emt 0:05:42]} Rc8 {[%emt 0:05:44]} 18. Qd3 {[%emt 0:02:30]} Qe7 {[%emt 0:04:44]} 19. Ng3 {[%emt 0:02:04]} Nf8 {[%emt 0:02:52]} 20. Nf5 {[%emt 0:02:26]} Qd8 {[%emt 0:01:10]} 21. Bc5 {[%emt 0:02:58]} Bxc5 {[%emt 0:00:59]} 22. bxc5 {[%emt 0:00:16]} h6 {[%emt 0:07:16]} 23. Qc3 {[%emt 0:05:04]} Ng6 {[%emt 0:01:34]} 24. Qb4 {[%emt 0:01:05]} Rb8 {[%emt 0:02:17]} 25. Re2 {[%emt 0:05:49]} Ba8 {[%emt 0:06:45]} 26. Ba2 {[%emt 0:06:36]} c6 {[%emt 0:03:36]} 27. d6 {[%emt 0:00:38]} Rf8 {[%emt 0:01:28]} 28. Qc3 {[%emt 0:03:08]} Nd7 {[%emt 0:03:14]} 29. Red2 {[%emt 0:04:09]} Rb7 {[%emt 0:01:06]} 30. g3 {[%emt 0:02:45]} Re8 {[%emt 0:02:27]} 31. N5h4 {[%emt 0:01:21]} Nxh4 {[%emt 0:01:19]} 32. Nxh4 {[%emt 0:00:07]} Ra7 {[%emt 0:03:55]} 33. Qf3 {[%emt 0:01:16]} Qf6 {[%emt 0:01:27]} 34. Nf5 {[%emt 0:03:58]} Rf8 {[%emt 0:03:29]} 35. Ne7+ {[%emt 0:00:43]} Kh7 {[%emt 0:01:07]} 36. Qxf6 {[%emt 0:00:37]} gxf6 {[%emt 0:00:58]} 37. Rc1 {[%emt 0:01:33]} Kg7 {[%emt 0:01:33]} 38. f4 {[%emt 0:00:14]} exf4 {[%emt 0:00:23]} 39. gxf4 {[%emt 0:00:09]} Bb7 {[%emt 0:01:57]} 40. Rg2+ {[%emt 0:00:06]} Kh8 {[%emt 0:01:02]} 41. Rc3 {[%emt 0:00:19]} Raa8 {[%emt 0:01:05]} 42. Nf5 {[%emt 0:00:29]} Bc8 {[%emt 0:01:45]} 43. Nxh6 {[%emt 0:00:15]} Kh7 {[%emt 0:03:02]} 44. Nxf7 {[%emt 0:00:07]} Ra7 {[%emt 0:01:10]} 45. Rcg3 {[%emt 0:00:10]} Nxc5 {[%emt 0:01:08]} 46. Rg7# {[%emt 0:00:20]} 1-0

[Event "French-ch U12-U14 2024"]
[Site "Agen"]
[Date "2024.04.20"]
[Round "8.7"]
[White "Briquet, Tom"]
[Black "Lequang, Enzo"]
[Result "1-0"]
[ECO "B35"]
[WhiteElo "1809"]
[BlackElo "1807"]
[Annotator "NA RC COMBH"]
[PlyCount "109"]
[EventDate "2024.04.14"]
[EventType "swiss"]
[EventCountry "FRA"]
[SourceTitle "playchess.com"]
[Source "ChessBase"]
[SourceQuality "1"]
[TimeControl "5400+30"]

1. e4 {[%emt 0:00:12]} c5 {[%emt 0:00:11]} 2. Nf3 {[%emt 0:00:28]} Nc6 {[%emt 0:01:20]} 3. d4 {[%emt 0:00:57]} cxd4 {[%emt 0:00:07]} 4. Nxd4 {[%emt 0:00:11]} g6 {[%emt 0:00:08]} 5. Nc3 {[%emt 0:00:23]} Bg7 {[%emt 0:00:04]} 6. Be3 {[%emt 0:00:07]} Nf6 {[%emt 0:00:10]} 7. Bc4 {[%emt 0:02:30]} Qa5 {[%emt 0:00:33]} 8. O-O {[%emt 0:01:17]} O-O {[%emt 0:00:07]} 9. Bb3 {[%emt 0:03:28]} d6 {[%emt 0:02:45]} 10. h3 {[%emt 0:00:42]} Bd7 {[%emt 0:00:25]} 11. Re1 {[%emt 0:12:08]} a6 {[%emt 0:02:40]} 12. f4 {[%emt 0:12:08]} Rfe8 {[%emt 0:02:17]} 13. Qd3 {[%emt 0:08:32]} Rac8 {[%emt 0:12:13]} 14. a3 {[%emt 0:02:02]} Qc7 {[%emt 0:02:19]} 15. Rad1 {[%emt 0:04:40]} Na5 {[%emt 0:00:40]} 16. Bd5 {[%emt 0:12:29]} Red8 {[%emt 1:12:31]} 17. g4 {[%emt 0:14:32]} Bc6 {[%emt 0:00:00]} 18. Nxc6 {[%emt 0:03:22]} Nxc6 {[%emt 0:00:00]} 19. Re2 {[%emt 0:02:52]} Na5 {[%emt 0:00:00]} 20. Red2 {[%emt 0:06:04]} Nd7 {[%emt 0:00:00]} 21. Bd4 {[%emt 0:02:55]} Nc6 {[%emt 0:00:00]} 22. Bxg7 {[%emt 0:00:26]} Kxg7 {[%emt 0:00:00]} 23. Bxc6 {[%emt 0:01:35]} bxc6 {[%emt 0:00:00]} 24. Qd4+ {[%emt 0:00:43]} Kg8 {[%emt 0:00:00]} 25. Kg2 {[%emt 0:02:55]} Rb8 {[%emt 0:00:00]} 26. b3 {[%emt 0:01:21]} Nc5 {[%emt 0:00:00]} 27. b4 {[%emt 0:00:30]} Ne6 {[%emt 0:00:00]} 28. Qe3 {[%emt 0:00:09]} a5 {[%emt 0:00:00]} 29. f5 {[%emt 0:01:55]} Nf8 {[%emt 0:00:00]} 30. b5 {[%emt 0:00:33]} Nd7 {[%emt 0:00:00]} 31. bxc6 {[%emt 0:00:20]} Qxc6 {[%emt 0:00:00]} 32. Nd5 {[%emt 0:00:04]} Re8 {[%emt 0:00:00]} 33. fxg6 {[%emt 0:01:22]} hxg6 {[%emt 0:00:00]} 34. g5 {[%emt 0:00:58]} Ne5 {[%emt 0:00:00]} 35. Qf4 {[%emt 0:00:26]} Rb2 {[%emt 0:00:00]} 36. Qf2 {[%emt 0:00:32]} Ra2 {[%emt 0:00:00]} 37. h4 {[%emt 0:00:47]} Qc4 {[%emt 0:00:00]} 38. Re1 {[%emt 0:01:16]} Rxa3 {[%emt 0:00:00]} 39. h5 {[%emt 0:01:00]} gxh5 {[%emt 0:00:00]} 40. Qe2 {[%emt 0:00:56]} Qxe2+ {[%emt 0:00:00]} 41. Rexe2 {[%emt 0:00:10]} Ng6 {[%emt 0:00:00]} 42. Rd3 {[%emt 0:00:24]} Rxd3 {[%emt 0:00:00]} 43. cxd3 {[%emt 0:00:03]} Kg7 {[%emt 0:00:00]} 44. Ra2 {[%emt 0:00:11]} Ra8 {[%emt 0:00:37]} 45. Kg3 {[%emt 0:00:08]} Kf8 {[%emt 0:01:11]} 46. Ra3 {[%emt 0:00:30]} Ra7 {[%emt 0:00:37]} 47. Nc3 {[%emt 0:00:36]} h4+ {[%emt 0:05:41]} 48. Kh2 {[%emt 0:00:21]} Ne5 {[%emt 0:00:36]} 49. Nb5 {[%emt 0:00:43]} Ra6 {[%emt 0:01:27]} 50. Nc7 {[%emt 0:00:34]} Rc6 {[%emt 0:00:35]} 51. Nd5 {[%emt 0:00:12]} e6 {[%emt 0:02:53]} 52. Nf6 {[%emt 0:00:25]} Ra6 {[%emt 0:02:32]} 53. d4 {[%emt 0:00:50]} Nc6 {[%emt 0:00:27]} 54. Rc3 {[%emt 0:00:33]} Nxd4 {[%emt 0:01:18]} 55. Rc8+ {[%emt 0:02:33]} 1-0